Cogmind - Beta 11 X11 @@@ ROGUE MODE // 2022.03.06 @ 12:39:01 Player: youngster Result: Destroyed by as-74155 with Assembled Rifle Performance ------------- Evolutions (0) 0 Regions Visited (2) 400 Robots Destroyed (27) 135 Value Destroyed (595) 595 Prototype IDs (4) 80 Alien Tech Used (0) 0 Bonus (0) 0 TOTAL SCORE: 1210 Bonus ------- None Cogmind --------- Core Integrity 0/250 Matter 236/300 Energy 264/265 System Corruption 0% Temperature Cool (4) Movement Treading (240) Ox1 Location -10/Mines Parts ------- > --- POWER (1) -------- Improved Ion Engine > --- PROPULSION (2) --- Light Treads Light Treads > --- UTILITY (2) ------ High-capacity Storage Unit Seismic Detector > --- WEAPON (2) ------- Light Cannon Light Cannon > --- INVENTORY (20) --- Improved Ion Engine Light Treads Light Treads Wheel Compact Wheel Huge Storage Unit High-capacity Matter Pod (200) Targeting Computer Tractor Beam Small Laser Assault Rifle Assault Rifle Assault Rifle Assault Rifle Light Assault Rifle Light Assault Rifle Light Cannon Grenade Launcher Peak State ------------ > --- POWER ------------ Improved Ion Engine > --- PROPULSION ------- Light Treads Wheel > --- UTILITY ---------- High-capacity Storage Unit Tractor Beam > --- WEAPON ----------- EM Pulse Gun Light Cannon > --- INVENTORY -------- Ion Engine Ion Engine Light Ion Engine Light Treads Light Treads Light Treads Huge Storage Unit High-capacity Matter Pod Seismic Detector Targeting Computer Small Laser Assault Rifle Assault Rifle Assault Rifle Assault Rifle Light Assault Rifle Light Assault Rifle Grenade Launcher [Rating: 9] Favorites ----------- Power Ion Engine Engine Ion Engine Propulsion Light Treads Treads Light Treads Wheel Wheel Utility Seismic Detector Device Seismic Detector Storage High-capacity Storage Unit Weapon Light Cannon Energy Gun EM Pulse Gun Ballistic Gun Assault Rifle Ballistic Cannon Light Cannon Launcher Grenade Launcher Build | -11 -10 -10 ------- Run | Scr Mat Min Slots Evolved . | . . . Power . | . . . Propulsion . | . . . Utility . | . . . Weapon . | . . . Parts Attached 36 | 4 23 9 Power 3 | 1 2 . Engine 3 | 1 2 . Core . | . . . Reactor . | . . . Propulsion 7 | . 5 2 Treads 5 | . 4 1 Leg . | . . . Wheel 2 | . 1 1 Hover . | . . . Flight . | . . . Utility 8 | 1 6 1 Device 4 | . 3 1 Storage 4 | 1 3 . Processor . | . . . Hackware . | . . . Protection . | . . . Artifact . | . . . Weapon 18 | 2 10 6 Energy Gun 3 | . 2 1 Energy Cannon . | . . . Ballistic Gun 7 | 2 3 2 Ballistic Cannon 3 | . 2 1 Launcher 5 | . 3 2 Special Weapon . | . . . Impact Weapon . | . . . Slashing Weapon . | . . . Piercing Weapon . | . . . Special Melee Weapon . | . . . Unidentified Prototypes . | . . . Parts Lost 1 | . . 1 Power . | . . . Propulsion . | . . . Utility . | . . . Weapon 1 | . . 1 Highest Loss Streak 1 | . . 1 To Critical Strikes . | . . . Average Slot Usage (%) 95 | . 95 100 Engine 14 | . 14 14 Treads 19 | . 19 14 Wheel 6 | . 5 13 Device 12 | . 12 14 Storage 14 | . 14 14 Energy Gun 5 | . 6 2 Ballistic Gun 12 | . 12 10 Ballistic Cannon 9 | . 8 14 Naked Turns . | . . . Heaviest Build 91 | 13 91 53 Greatest Support 40 | 3 40 16 Greatest Overweight (x) 9 | 4 9 5 Average Overweight (x) 2 | 2 2 4 Largest Inventory Capacity 25 | 8 25 20 Average Capacity 16 | 7 16 20 Most Carried 18 | 6 18 18 Average Carried 12 | 4 12 17 Final Capacity 20 | 8 20 20 Final Carried 18 | 6 18 18 Class Distribution -------------------- 100% | Mutant Dominant Class ---------------- Mutant | -10/Materials Mutant | -10/Mines Resources | -11 -10 -10 ----------- Run | Scr Mat Min Matter Collected 1030 | 248 630 152 Remotely 292 | . 241 51 Salvage Created 814 | 64 538 212 Parts 51 | 2 42 7 Haulers Intercepted . | . . . Recyclers Shooed 2 | . 2 . Parts Field Recycled . | . . . Retrieved Matter . | . . . Parts Self-Destructed . | . . . Prevented . | . . . Kills | -11 -10 -10 ------- Run | Scr Mat Min Combat Hostiles Destroyed 27 | . 17 10 Guns 6 | . 5 1 Cannons 8 | . 7 1 AOE 13 | . 5 8 Classes Destroyed 6 | 1 4 1 Worker 1 | . 1 . Recycler 4 | 1 2 1 Watcher 1 | . 1 . Swarmer 9 | . 9 . Grunt 12 | . 8 4 Assembled 6 | . . 6 Best Kill Streak 7 | 1 7 6 Combat Bots Only 6 | . 5 6 Max Kills in Single Turn 5 | 1 3 5 Gunslinging . | . . . Exploded 5 | . 2 5 Melee . | . . . Uniques/NPCs Destroyed . | . . . Combat | -11 -10 -10 -------- Run | Scr Mat Min Damage Taken 964 | . 393 571 Core 250 | . 82 168 Absorbed by Shields . | . . . Regen/Repaired (Parts) 105 | . 105 . Core Remaining (%) 100 | 100 . . Volleys Fired 62 | 2 40 20 Largest 2 | 2 2 2 Hottest 75 | 40 75 75 Shots Fired 115 | 4 74 37 Gun 72 | 4 52 16 Cannon 34 | . 16 18 Launcher 9 | . 6 3 Special . | . . . Kinetic 86 | 4 61 21 Thermal . | . . . Explosive 9 | . 6 3 Electromagnetic 20 | . 7 13 Robot Hit Streak 15 | 1 8 15 Robot Miss Streak 3 | 2 3 2 Penetration Max . | . . . Secondary Targets . | . . . Shots Hit Robots 78 | 2 48 28 Core Hits 50 | 2 27 21 Critical Kills . | . . . Critical Parts Destroyed . | . . . Critical Strikes . | . . . Melee Attacks . | . . . Impact . | . . . Slashing . | . . . Piercing . | . . . Sneak Attacks . | . . . Combat Hostiles . | . . . Follow-up Attacks . | . . . Damage Inflicted 1928 | 20 1101 807 Guns 569 | 20 373 176 Cannons 492 | . 235 257 Explosions 864 | . 490 374 Melee . | . . . Ramming 3 | . 3 . Kinetic 860 | 20 553 287 Thermal 59 | . 59 . Explosive 805 | . 431 374 Electromagnetic 201 | . 55 146 Impact . | . . . Slashing . | . . . Piercing . | . . . Highest Corruption . | . . . Average Corruption . | . . . Corruption Purged . | . . . Corruption Blocked . | . . . Overload Shots . | . . . Overflow Damage . | . . . Projectiles . | . . . Explosions . | . . . Melee . | . . . Knockbacks 8 | . 4 4 Impact 1 | . 1 . Kinetic 7 | . 3 4 Secondary . | . . . Self-Inflicted Damage 52 | . 52 . Shots 4 | . 4 . Rammed 1 | . 1 . Targets Rammed 1 | . 1 . Kicked . | . . . Crushed . | . . . Highest Temperature 324 | . 36 324 Average Temperature 90 | . 12 147 Received Heat Transfer 270 | . 90 180 Siege Activations . | . . . Robots Corrupted . | . . . Combat Hostiles . | . . . Parts Fried . | . . . Impact Corruptions . | . . . Robots Melted . | . . . Combat Hostiles . | . . . Parts Melted . | . . . Heat Transferred 100 | . 100 . Parts Sabotaged . | . . . Parts Stolen . | . . . Parts Stripped . | . . . Power Chain Reactions 1 | . 1 . Missiles Intercepted . | . . . Alert | -11 -10 -10 ------- Run | Scr Mat Min Peak Influence 284 | 5 276 284 Initial 87 | . 3 87 Average 111 | 2 107 191 Maximum Alert Level 1 | . 1 1 Low Security (%) 70 | 100 71 53 Level 1 29 | . 28 46 Level 2 . | . . . Level 3 . | . . . Level 4 . | . . . Level 5 . | . . . High Security . | . . . Max Security . | . . . Squads Dispatched 4 | . 4 . Investigation 2 | . 2 . Extermination . | . . . Reinforcement 2 | . 2 . Assault . | . . . Garrison . | . . . Intercept . | . . . Searches Triggered . | . . . Construction Impeded . | . . . Haulers Reinforced . | . . . Active Scanning Responses . | . . . Cargo Convoy Interrupts . | . . . Stealth | -11 -10 -10 --------- Run | Scr Mat Min Distress Signals 2 | . 2 . Communications Jammed . | . . . Distress Signals . | . . . Times Spotted 41 | . 28 13 Peak Tracking Total 10 | . 4 10 Tactical Retreats 3 | . 1 2 Traps | -11 -10 -10 ------- Run | Scr Mat Min Traps Triggered . | . . . Indirectly . | . . . Trap Hack Attempts . | . . . Triggered . | . . . Disarmed . | . . . Reprogrammed . | . . . Reused . | . . . Traps Extracted . | . . . Installed . | . . . Triggered . | . . . Machines | -11 -10 -10 ---------- Run | Scr Mat Min Machines Disabled 3 | . 2 1 Max in Single Turn 1 | . 1 1 Machines Sabotaged . | . . . Garrisons Compromised . | . . . Overloaded Fab Kills . | . . . Hacking | -11 -10 -10 --------- Run | Scr Mat Min Machines Accessed 8 | . 8 . Terminals 6 | . 6 . Fabricators . | . . . Repair Stations 1 | . 1 . Recycling Units 1 | . 1 . Scanalyzers . | . . . Garrison Access . | . . . Total Hacks 25 | . 25 . Successful 18 | . 18 . Failed 7 | . 7 . Catastrophic 1 | . 1 . Database Lockouts . | . . . Manual 15 | . 15 . Terminals 18 | . 18 . Fabricators . | . . . Repair Stations 6 | . 6 . Recycling Units 1 | . 1 . Scanalyzers . | . . . Garrison Access . | . . . Terminal Hacks 6 | . 6 . Prototype ID Bank 3 | . 3 . Unreport Threat 1 | . 1 . Locate Traps 1 | . 1 . Hauler Manifests 1 | . 1 . Fabricator Hacks . | . . . Repair Station Hacks 4 | . 4 . Scan Component 2 | . 2 . Repair 2 | . 2 . Recycling Unit Hacks . | . . . Scanalyzer . | . . . Garrison Access Hacks . | . . . Unauthorized Hacks 8 | . 8 . Terminals 7 | . 7 . Track 3 | . 3 . Botnet 3 | . 3 . Operators 1 | . 1 . Fabricators . | . . . Repair Stations . | . . . Recycling Units 1 | . 1 . Tunnel 1 | . 1 . Scanalyzers . | . . . Garrison Access . | . . . Data Cores Recovered . | . . . Used . | . . . Hacking Detections 7 | . 7 . Full Trace Events 1 | . 1 . Feedback Events . | . . . Feedback Blocked . | . . . Robot Schematics Acquired . | . . . Robots Built . | . . . Authchips . | . . . Time . | . . . Total Robot Build Rating . | . . . Part Schematics Acquired . | . . . Parts Built . | . . . Authchips . | . . . Time . | . . . Total Part Build Rating . | . . . Parts Repaired 2 | . 2 . Time 52 | . 52 . Parts Recycled . | . . . Recycled Matter . | . . . Retrieved Matter . | . . . Retrieved Components . | . . . Parts Scanalyzed . | . . . Part Schematics Acquired . | . . . Parts Damaged . | . . . Bothacking | -11 -10 -10 ------------ Run | Scr Mat Min Used RIF Installer . | . . . Robots Hacked . | . . . Non-combat . | . . . Combat . | . . . Robot Hacks Applied . | . . . Relay Couplers Released . | . . . Fabnet Peak Effective % . | . . . Robots Rewired . | . . . Allies Hacked . | . . . Hacks Repelled . | . . . Allies | -11 -10 -10 -------- Run | Scr Mat Min Total Allies . | . . . Largest Group . | . . . Highest-Rated Group . | . . . Highest-Rated Ally . | . . . Total Orders . | . . . Ally Attacks . | . . . Total Damage . | . . . Kills . | . . . Allies Corrupted . | . . . Allies Melted . | . . . Intel | -11 -10 -10 ------- Run | Scr Mat Min Robot Analysis Total . | . . . Derelict Logs Recovered 1 | . . 1 Drone Launches . | . . . Drone Recoveries . | . . . Exploration | -11 -10 -10 ------------- Run | Scr Mat Min Turns Passed 1854 | 84 1577 193 Spaces Moved 920 | 38 800 82 Core 88 | 38 50 . Treads 365 | . 365 . Legs . | . . . Wheels 467 | . 385 82 Hover . | . . . Flight . | . . . Fastest Speed 50 | 50 155 145 Average Speed 165 | 178 165 150 Slowest Speed 250 | 250 250 155 Overloaded Moves . | . . . Propulsion Burnouts . | . . . Robots Hopped . | . . . Cave-ins Triggered . | . . . Exploration Rate (%) 42 | 4 98 25 Regions Visited 2 Branch Regions 1 Pre-discovered Areas 1 | . 1 . Known Exits Taken . | . . . Unknown Exits Taken 2 | 1 1 . Scrap Searched . | . . . Spaces Dug 9 | . 9 . Terrain Destroyed 58 | . 39 19 Melee . | . . . Projectile . | . . . AOE 58 | . 39 19 Terrain Rammed . | . . . Walls Destroyed . | . . . Machines Disabled . | . . . Actions | -11 -10 -10 --------- Run | Scr Mat Min Total 1135 | 49 974 112 Wait 92 | . 91 1 Move 918 | 37 799 82 Hop . | . . . Pick Up 18 | 6 12 . Fast Attach 8 | 4 4 . Attach 5 | . 4 1 Detach 3 | . 3 . Swap 23 | . 15 8 Drop 5 | . 5 . Fire 62 | 2 40 20 Melee . | . . . Ram . | . . . Kick . | . . . Crush 1 | . 1 . Escape Stasis . | . . . Rewire . | . . . Trap . | . . . Miscellaneous . | . . . Route ------- -11/Scrapyard -10/Materials (discovered 5 exits: [*Mat x3] / [*Min x2]) -10/Mines (discovered 1 exit: [*Mat]) History --------- Turn | Location | Event 8 | -11/Scrapyard | Discovered new exit (range 15) 85 | -11/Scrapyard | Entered Materials 319 | -10/Materials | Build established: Mutant 340 | -10/Materials | Discovered new exit (range 13) 392 | -10/Materials | Discovered new exit (range 14) 881 | -10/Materials | Repaired Lgt. Treads 912 | -10/Materials | Repaired Lgt. Treads 1011 | -10/Materials | Discovered new exit (range 8) 1396 | -10/Materials | Discovered new exit (range 16) 1560 | -10/Materials | Discovered new exit (range 6) 1662 | -10/Materials | Entered Mines 1679 | -10/Mines | Core integrity fell below 50% 1787 | -10/Mines | Discovered new exit (range 10) 1830 | -10/Mines | Assembled infested the area 1855 | -10/Mines | Destroyed by as-74155 with Assembled Rifle Last Messages --------------- 01813_ U-05 Engineer lays Concrete. 01816_ U-05 Engineer builds a Wall. 01826_ Acquired 37 matter. 01830_ ALERT: Infestation in the mines, dispatching Demolisher response squad. 01846_ C-30 ARC bursts open, deploying its payload. 01846_ D-53 Grenadier unfolds itself. 01846_ K-01 Serf destroyed. 01848_ U-05 Engineer lays Concrete. 01848_ as-44158 destroyed. 01850_ U-05 Engineer builds a Wall. 01850_ as-60780 destroyed. 01850_ as-65942 destroyed. 01850_ as-00589 destroyed. 01852_ as-84648 destroyed. 01853_ D-53 Grenadier suffers critical hit (Destroy). 01853_ D-53 Grenadier destroyed. 01853_ U-05 Engineer builds a Wall. 01854_ D-53 Grenadier knocked back. 01855_ The unstable cave ceiling collapses. Map ----- +----------------------------------------------------+ | | | | | | | | | | | | | | | | | | | ?????????????????????????????????????????????????? | | ?????????????????????????????????????????????##??? | | ????????????????????###? ###??????????????## ##? | | ???????????????????## ##?#########??## ## | | ????????????????#### """ ??# #??# # | | ??????????????## # """ ??# """ #??# """ | | ?????????????? % """ ???# """ #??# """ | | ?????????????? a ???# < """ #??# """ | | ???????????????# ????# #??# | | ???????????????# ????# #??# | | ???????????????# #????##### ##??# | | ????????????????? ## ###?????## #??## ## | | ?????????????????## # ##????##=!#### ### # | | ?????????????????# ##???## ##% #?# # | | ?????????????????# ###?## #### # | | ?????????????????# # #### ##?# | | ?????????????????# @ # ####??# ## | | ?????????????????### d u ######## ## | | ???????????????????## #### ### # | | ????????????????????## ##??# #?# """ | | ?????????????????????## # #####???# #?# " # | | ??????????????????????#$#####?????### #?# " # | | ??????????????????????# ??????????# #?# # | | ??????????????????????#???????????# #?# # | | ??????????????????????????????????# ###?# # | | ???????????????????????????????? ????#### ### | | ???????????????????????????????#### ???????# #?? | | ??????????????????????????????????# ???????# #?? | | ??????????????????????????????????# ???????# ?? | | ?????????????????????????????????? ???????# ? | | ?????????????????????????????????? ""???????###### | | ????????????????????????????????? ""????????????? | | ????????????????????????????????? ??????????????? | | ???????????????????????????????? ???????????????? | | ?????????????????????????????????????????????????? | | ?????????????????????????????????????????????????? | | ?????????????????????????????????????????????????? | | ?????????????????????????????????????????????????? | | ?????????????????????????????????????????????????? | | ?????????????????????????????????????????????????? | | ?????????????????????????????????????????????????? | +----------------------------------------------------+ Best States ------------- Heat Dissipation 25 Energy Generation 12 Energy Capacity 265 Matter Stores 300 Matter Capacity 300 Sight Range 16 Terrain Scan Density 10 Evasion (%) 40 Recoil Reduction 2 Item Schematics ----------------- None Robot Schematics ------------------ None Fabricated ------------ Nothing Alien Tech Used ----------------- None Achievements -------------- None Challenges ------------ None Game ------ Seed MyomerThrowingMace Manual? 0 Play Time 00:15:44 Cumulative 212.3 hours Start 2022.03.06 @ 12:25:28 End 2022.03.06 @ 12:39:01 Sessions 1 Manual Loads 0 Difficulty Rogue Special Mode None Game No. 108 Rogue 108 Adventurer 0 Explorer 0 Win Type - Total 3 Types 2/0/0/1/0/0/0/0/0 Lore% 81 Gallery% 86 Achievement% 66 Wizard Run 0 Options --------- ASCII 1 Keyboard 1 Movement Vi Keybinds 0 Fullscreen 2 Font 18/Cog Map View 76x50 Tactical HUD 1 Map Filters NONE Filters NONE Steam 0 RUN: f5e0bac6-6e61-46c1-ade8-031f393128f7